bitfinex/quotes_ETHUSD_20230119
["timestamp","ask_amount","ask_price","bid_price","bid_amount"]
[1674120708402,1.0,1524.0,1523.6,2.86562266]
[1674120708574,9.09482,1524.0,1523.6,0.4923]
[1674120708748,9.16082,1524.0,1523.5,18.40317901]
[1674120708941,9.16082,1524.0,1523.5,0.066]
[1674120709150,9.16082,1524.0,1523.5,0.09984874]
[1674120709372,8.16082,1524.0,1523.4,0.4924]
[1674120710927,14.72264,1524.0,1523.4,0.4924]
[1674120711464,14.72264,1524.0,1523.3,1.1091268]
[1674120711465,1.546,1523.9,1523.3,1.1091268]
[1674120711679,14.81802,1523.8,1523.3,3.65132492]
[1674120712039,14.72942,1523.8,1523.3,3.65132492]
[1674120712206,14.74539246,1523.8,1523.3,3.65132492]
[1674120712642,1.546,1523.7,1523.3,3.65132492]
[1674120712879,8.10912,1523.7,1523.3,3.65132492]
[1674120713092,8.17512,1523.7,1523.3,3.65132492]
[1674120713475,6.62912,1523.7,1523.3,3.65132492]
[1674120713704,6.62912,1523.7,1523.3,4.14372492]
[1674120714095,6.62912,1523.7,1523.3,3.65132492]
[1674120715634,6.62912,1523.7,1523.3,1.1091268]
[1674120715635,20.65393884,1523.7,1523.3,1.1091268]
[1674120715790,1.0,1523.6,1523.3,1.1091268]
[1674120716142,13.12766,1523.5,1523.3,1.1091268]
[1674120716349,13.19366,1523.5,1523.3,1.1091268]
[1674120716509,15.59857876,1523.5,1523.3,1.1091268]
[1674120717793,16.09087876,1523.5,1523.3,1.1091268]
[1674120719500,3.29174759,1523.4,1523.3,1.1091268]
[1674120719675,16.42026759,1523.4,1523.3,1.1091268]
[1674120719902,16.97866759,1523.4,1523.3,1.1091268]
[1674120720110,19.78313923,1523.4,1523.3,1.1091268]
[1674120720502,21.32913923,1523.4,1523.3,1.1091268]
[1674120720708,0.25912813,1523.1,1522.8,15.58917901]
[1674120720919,26.54056276,1522.9,1522.4,0.06]
[1674120721190,3.29174759,1522.5,1521.8,1.1091268]
[1674120721405,13.1381,1522.3,1521.8,1.1091268]
[1674120721551,4.179,1522.3,1521.8,1.1091268]
[1674120721759,4.113,1522.3,1521.9,1.0]
[1674120722021,2.89580747,1522.3,1522.0,0.05]
[1674120722393,2.89580747,1522.3,1521.9,1.0]
[1674120722754,2.89580747,1522.3,1521.8,1.1091268]
[1674120722977,2.89580747,1522.3,1522.0,0.25407693]
[1674120723131,10.05670468,1522.7,1522.0,6.82432693]
[1674120723335,10.05670468,1522.7,1522.5,1.537]
[1674120723336,0.066,1522.7,1522.5,1.537]
[1674120723546,0.34281517,1522.9,1522.5,1.537]
[1674120723811,0.34281517,1522.9,1522.6,0.01484941]
[1674120724444,0.34281517,1522.9,1522.3,0.5587]
[1674120724445,1.533,1522.8,1522.3,0.5587]
[1674120724595,9.10937628,1522.8,1522.2,3.4928]
[1674120724805,11.95036759,1522.8,1522.2,0.4928]
[1674120725015,0.01597246,1522.7,1522.1,4.17523269]
[1674120725282,12.40827005,1522.7,1522.2,0.41752327]
[1674120725473,0.4926,1522.6,1522.1,0.4928]
[1674120726730,0.01597246,1522.5,1522.1,0.4928]
[1674120726941,6.58443246,1522.5,1522.1,0.08128769]
[1674120727320,1.537,1522.2,1522.0,0.25407693]
[1674120727592,0.4928,1522.1,1522.0,0.25407693]
[1674120727747,0.4928,1522.2,1522.0,0.25407693]
[1674120727957,0.50867246,1522.3,1522.0,0.25407693]
[1674120728200,0.4947,1522.3,1522.0,0.25407693]
[1674120728410,0.4927,1522.4,1522.0,0.37948462]
[1674120729055,0.4927,1522.4,1522.0,5.21723221]
[1674120729273,10.066,1522.5,1522.1,1.546]
[1674120729595,0.066,1522.5,1522.1,1.546]
[1674120729912,0.5586,1522.7,1522.2,3.44634759]
[1674120730128,0.4926,1522.7,1522.3,1.0]
[1674120730437,0.4926,1522.7,1522.4,0.1]
[1674120730904,10.066,1522.9,1522.4,4.93774759]
[1674120731121,0.066,1522.9,1522.6,1.0]
[1674120731498,0.25912813,1523.1,1522.7,0.1]
[1674120731646,0.75162813,1523.1,1522.7,0.1]
[1674120733009,0.75162813,1523.1,1522.7,1.646]
[1674120733366,0.25912813,1523.1,1522.7,1.646]
[1674120733551,0.25912813,1523.1,1522.8,1.1646]
[1674120735175,0.25912813,1523.1,1522.8,1.17944746]
[1674120735349,0.25912813,1523.1,1522.8,2.72544746]
[1674120735743,0.25912813,1523.1,1522.8,1.17944746]
[1674120736173,0.25912813,1523.1,1522.8,4.47119505]
[1674120736429,0.25912813,1523.1,1522.9,3.7388671]
[1674120736729,0.25912813,1523.1,1522.9,0.461966]
[1674120736896,0.25912813,1523.1,1522.9,0.01484649]
[1674120737111,0.25912813,1523.1,1522.7,0.5926]
[1674120737526,0.27510059,1523.1,1522.7,0.5926]
[1674120737774,0.27510059,1523.1,1522.7,0.1]
[1674120737940,6.84068059,1523.1,1522.6,3.0]
[1674120738155,0.34110059,1523.1,1522.6,0.01484941]
[1674120738401,0.27510059,1523.1,1522.6,0.01484941]
[1674120738600,0.27510059,1523.1,1522.6,3.90155194]
[1674120738787,0.27510059,1523.1,1522.6,4.90155194]
[1674120739374,0.27510059,1523.1,1522.6,0.60980435]
[1674120739566,0.27510059,1523.1,1522.6,3.60980435]
[1674120739732,0.27510059,1523.1,1522.6,6.90155194]
[1674120739941,0.27510059,1523.1,1522.7,1.69015519]
[1674120740311,0.27510059,1523.1,1522.8,3.29174759]
[1674120740485,0.27510059,1523.1,1522.7,8.32341519]
[1674120740691,0.27510059,1523.1,1522.7,2.24875519]
[1674120740933,0.27510059,1523.1,1522.7,5.47450278]
[1674120741121,0.27510059,1523.1,1522.8,0.54745028]
[1674120741532,0.25912813,1523.1,1522.8,0.54745028]
[1674120741987,0.25912813,1523.1,1522.8,4.83919787]
[1674120742305,0.25912813,1523.1,1522.8,11.40594787]
[1674120742629,0.26328083,1523.1,1522.9,4.65774759]
[1674120742835,0.26328083,1523.1,1523.0,7.03175476]
[1674120742990,0.26328083,1523.1,1523.0,7.09775476]
[1674120744521,0.26328083,1523.1,1523.0,18.33148235]
[1674120744705,0.26328083,1523.1,1523.0,18.3286896]
[1674120745090,0.26328083,1523.1,1523.0,11.7627096]
[1674120745474,0.26328083,1523.1,1523.0,0.52898201]
[1674120745694,0.26328083,1523.1,1523.0,1.46298201]
[1674120745986,0.26328083,1523.1,1523.0,0.46298201]
[1674120747770,0.26328083,1523.1,1523.0,1.46298201]
[1674120748082,0.26328083,1523.1,1523.0,8.02896201]
[1674120748306,0.26328083,1523.1,1523.0,8.09496201]
[1674120749349,0.26328083,1523.1,1523.0,17.9526896]
[1674120749506,0.26328083,1523.1,1523.0,19.3166896]
[1674120750601,0.26328083,1523.1,1523.0,19.5466896]
[1674120750876,0.26328083,1523.1,1523.0,19.3166896]
[1674120751662,0.0041527,1523.1,1523.0,19.3166896]
[1674120751812,0.0041527,1523.1,1523.0,15.02494201]
[1674120752032,0.0041527,1523.1,1523.0,6.63198]
[1674120754606,0.0041527,1523.1,1523.0,13.19796]
[1674120756352,0.0041527,1523.1,1523.0,16.48970759]
[1674120756543,0.0041527,1523.1,1523.0,17.86570759]
[1674120757844,1e-08,1523.1,1523.0,17.86570759]
[1674120758018,1e-08,1523.1,1523.0,20.96715002]
[1674120758490,1e-08,1523.1,1523.0,21.19715002]
[1674120758929,1e-08,1523.1,1523.0,26.70571474]
[1674120759164,1e-08,1523.1,1523.0,24.45965002]
[1674120759611,1e-08,1523.1,1523.0,24.68965002]
[1674120763033,1e-08,1523.1,1523.0,21.45965002]
[1674120763215,1e-08,1523.1,1523.0,13.19796]
[1674120763765,1e-08,1523.1,1523.0,6.63198]
[1674120764862,1e-08,1523.1,1523.0,0.066]
[1674120765114,1e-08,1523.1,1522.9,6.64856668]
[1674120765702,1e-08,1523.1,1522.9,13.21497668]
[1674120768787,1e-08,1523.1,1523.0,1.0]
[1674120768980,1e-08,1523.1,1523.0,14.13196]
[1674120769202,1e-08,1523.1,1523.0,14.19796]
[1674120771582,0.5047669,1523.4,1523.0,14.19796]
[1674120771796,0.0046047,1523.3,1523.0,17.48970759]
[1674120772043,0.0046047,1523.3,1523.0,20.29960792]
[1674120772479,0.0046047,1523.3,1523.1,3.29174759]
[1674120772638,0.0046047,1523.3,1523.2,13.13024]
[1674120772848,0.0046047,1523.3,1523.2,13.19624]
[1674120776735,0.0046047,1523.3,1523.2,16.48798759]
[1674120777057,0.0046047,1523.3,1523.2,18.79523167]
[1674120778519,0.0046047,1523.3,1523.2,19.02523167]
[1674120778731,0.0046047,1523.3,1523.2,22.02523167]
[1674120780146,0.0046047,1523.3,1523.2,21.79523167]
[1674120782945,0.0046047,1523.3,1523.2,0.066]
[1674120783220,0.0046047,1523.3,1523.1,13.21577322]
[1674120783355,0.0046047,1523.3,1523.1,16.50752081]
[1674120783571,0.0046047,1523.3,1523.1,13.21577322]
[1674120785378,0.0046047,1523.3,1523.2,1.0]
[1674120785696,0.0046047,1523.3,1523.2,7.56512]
[1674120785959,0.0046047,1523.3,1523.2,7.63112]
[1674120787475,0.0046047,1523.3,1523.2,6.63112]
[1674120787682,0.0046047,1523.3,1523.2,13.19624]
[1674120788421,0.0046047,1523.3,1523.2,19.12258891]
[1674120789532,0.0046047,1523.3,1523.2,21.62564809]
[1674120789705,1e-08,1523.3,1523.2,27.25024838]
[1674120789918,1e-08,1523.3,1523.2,27.9043131]
[1674120790130,0.68500954,1523.7,1523.2,28.3967131]
[1674120790449,0.68500954,1523.7,1523.4,1.0]
[1674120790636,0.68500954,1523.7,1523.5,19.69149]
[1674120790841,0.68500954,1523.7,1523.5,19.75749]
[1674120791056,0.0046047,1523.7,1523.5,22.16241376]
[1674120791426,0.0046047,1523.7,1523.5,25.47247]
[1674120794369,0.0046047,1523.7,1523.5,23.06754624]
[1674120794580,0.0046047,1523.7,1523.5,9.93988624]
[1674120794901,0.68500954,1523.7,1523.5,0.08430865]
[1674120795086,0.68040484,1523.6,1523.3,6.63042]
[1674120796346,1.78427489,1523.7,1523.3,16.48685759]
[1674120796553,1.71827489,1523.7,1523.3,16.48685759]
[1674120797850,0.68040484,1523.6,1523.3,16.48685759]
[1674120798579,2.21057489,1523.7,1523.3,16.50595785]
[1674120798889,3.23061117,1523.7,1523.3,16.50595785]
[1674120799113,3.23061117,1523.7,1523.3,9.94126785]
[1674120799262,7.24384484,1523.6,1523.3,0.08510026]
[1674120799472,7.30984484,1523.6,1523.3,0.01910026]
[1674120799706,9.60184396,1523.6,1523.3,0.01910026]
[1674120800314,10.6227424,1523.6,1523.3,0.01910026]
[1674120800789,9.60184396,1523.6,1523.3,0.01910026]
[1674120801002,3.03840396,1523.6,1523.3,0.01910026]
[1674120801158,2.97240396,1523.6,1523.3,0.01910026]
[1674120801368,2.97240396,1523.6,1523.3,6.58364026]
[1674120801595,0.68040484,1523.6,1523.3,6.64964026]
[1674120802013,0.68040484,1523.6,1523.3,16.50607785]
[1674120802225,1.18967645,1523.7,1523.4,1.0]
[1674120802441,0.68500954,1523.7,1523.4,7.56407]
[1674120802785,0.68500954,1523.7,1523.4,7.63007]
[1674120802786,0.0046047,1523.7,1523.4,7.63007]
[1674120802946,0.0046047,1523.7,1523.4,14.19433]
[1674120803154,2.19810798,1523.8,1523.4,14.19433]
[1674120803399,2.19810798,1523.8,1523.4,13.19433]
[1674120804329,0.68040484,1523.7,1523.4,13.19433]
[1674120805479,0.68040484,1523.7,1523.4,16.48607759]
[1674120805688,2.26410798,1523.8,1523.5,3.29174759]
[1674120805916,1.70590798,1523.8,1523.5,9.85542759]
[1674120806128,1.70590798,1523.8,1523.5,9.92142759]
[1674120806787,1.70590798,1523.8,1523.5,6.62968]
[1674120806936,1.17270484,1523.7,1523.5,0.066]
[1674120807153,0.68040484,1523.7,1523.4,6.62999]
[1674120807394,0.68040484,1523.7,1523.4,7.29489903]
[1674120808046,0.68040484,1523.7,1523.4,13.85915903]
[1674120808621,0.68040484,1523.7,1523.4,7.29489903]
[1674120809279,14.82730328,1523.7,1523.4,0.066]
[1674120809498,0.68040484,1523.6,1523.2,13.12998]
[1674120809666,0.68040484,1523.6,1523.2,16.48772759]
[1674120809667,2.15973217,1523.6,1523.2,16.48772759]
[1674120809882,1.17270484,1523.6,1523.2,16.48772759]
[1674120810125,0.68040484,1523.6,1523.2,16.48772759]
[1674120810757,0.68040484,1523.6,1523.3,4.29174759]
[1674120811043,0.68040484,1523.6,1523.2,0.066]
[1674120811044,3.76940484,1523.4,1523.2,0.066]
[1674120811288,8.10369,1523.3,1522.9,1.0]
[1674120811454,8.10369,1523.3,1522.9,1.83168299]
[1674120811455,8.16969,1523.3,1522.9,1.83168299]
[1674120811876,7.12309,1523.3,1522.9,1.83168299]
[1674120813197,7.12309,1523.3,1522.9,0.83168299]
[1674120813354,13.68778,1523.3,1522.8,5.06118404]
[1674120813717,13.68778,1523.3,1522.9,2.14031845]
[1674120813933,13.68778,1523.3,1522.8,19.84126104]
[1674120814149,7.12309,1523.3,1522.9,10.69073425]
[1674120814359,0.5584,1523.3,1522.9,9.6164461]
[1674120814579,0.4924,1523.3,1522.9,8.6164461]
[1674120815103,3.29174759,1523.2,1522.9,0.066]
[1674120815422,8.10499,1523.0,1522.5,0.98658558]
[1674120815642,0.4925,1522.9,1522.6,4.43221293]
[1674120815859,0.4925,1522.9,1522.7,1.58368398]
[1674120816003,22.16423,1523.1,1522.6,0.6843299]
[1674120816004,0.4925,1523.0,1522.6,0.6843299]
[1674120816214,7.05881,1523.0,1522.6,0.6843299]
[1674120816482,7.05881,1523.0,1522.6,1.14043993]
[1674120816483,6.56643,1522.9,1522.6,1.14043993]
[1674120816649,1.0,1522.7,1522.5,0.92058558]
[1674120816861,2.0316,1522.6,1522.5,0.23625568]
[1674120817088,11.59931,1522.6,1522.5,0.23625568]
[1674120817326,20.056279,1522.6,1522.5,0.23625568]
[1674120818638,20.06864591,1522.6,1522.5,0.23625568]
[1674120819308,23.3603935,1522.6,1522.5,0.23625568]
[1674120820172,24.8963935,1522.6,1522.5,5.568e-05]
[1674120820309,25.1263935,1522.6,1522.5,5.568e-05]
[1674120820523,24.8963935,1522.6,1522.5,5.568e-05]
[1674120821257,25.55045822,1522.6,1522.5,5.568e-05]
[1674120821754,32.67245822,1522.6,1522.5,5.568e-05]
[1674120823015,25.11402659,1522.6,1522.5,5.568e-05]
[1674120823781,24.88402659,1522.6,1522.5,5.568e-05]
[1674120824648,20.34502659,1522.6,1522.5,5.568e-05]
[1674120825056,20.34502659,1522.6,1521.8,1.1691268]
[1674120825057,3.29174759,1522.2,1521.8,1.1691268]
[1674120825268,4.01454759,1522.1,1521.8,1.1091268]
[1674120825496,13.14146,1521.9,1521.8,1.1091268]
[1674120825832,18.54110759,1521.9,1521.8,1.1091268]
[1674120826065,22.59749152,1521.9,1521.8,1.1091268]
[1674120826407,24.6578725,1521.9,1521.8,1.1091268]
[1674120826616,17.5942425,1521.9,1521.8,1.1091268]
[1674120827284,14.30249491,1521.9,1521.8,1.1091268]
[1674120827510,14.79539491,1521.9,1521.8,1.1091268]
[1674120827665,12.75321098,1521.9,1521.8,1.1091268]
[1674120828311,19.32394098,1521.9,1521.8,0.1091268]
[1674120828955,12.72173,1521.9,1521.8,1.0451268]
[1674120829135,12.72173,1521.9,1521.8,1.17479599]
[1674120829136,0.066,1521.9,1521.8,1.17479599]
[1674120829346,11.5856,1522.0,1521.8,1.17479599]
[1674120829552,11.5856,1522.0,1521.8,1.0451268]
[1674120829553,5.015,1522.0,1521.8,1.0451268]
[1674120830818,6.564,1522.0,1521.8,1.0451268]
[1674120831022,6.564,1522.0,1521.8,0.1091268]
[1674120831023,18.15566,1522.0,1521.8,0.1091268]
[1674120831297,8.386296,1521.9,1521.8,0.1091268]
[1674120831446,6.63673,1521.9,1521.8,0.1091268]
[1674120831657,13.20746,1521.9,1521.8,0.1091268]
[1674120832322,6.63673,1521.9,1521.8,0.1091268]
[1674120832709,0.066,1521.9,1521.8,0.1091268]
[1674120832919,5.015,1522.0,1521.8,0.1091268]
[1674120835155,0.42849087,1522.0,1521.8,3.40087439]
[1674120835380,0.36249087,1522.0,1521.9,3.43808744]
[1674120835615,0.11590005,1522.3,1521.9,14.02346503]
[1674120835778,0.04990005,1522.3,1522.0,5.82774759]
[1674120835995,0.04990005,1522.3,1522.1,0.58277476]
[1674120836836,0.04990005,1522.3,1522.1,2.13177476]
[1674120837095,0.04990005,1522.3,1522.1,2.05177476]
[1674120839143,0.04990005,1522.3,1522.1,0.50277476]
[1674120839414,0.04990005,1522.3,1521.9,4.06298744]
[1674120839617,0.04990005,1522.3,1521.9,7.35473503]
[1674120839808,0.04990005,1522.3,1521.9,7.42073503]
[1674120839995,0.04990005,1522.3,1521.9,3.89898744]
[1674120840216,0.04990005,1522.3,1521.9,3.83298744]
[1674120841707,0.04990005,1522.3,1522.0,0.38329874]
[1674120842525,6.61902005,1522.3,1521.9,0.83298744]
[1674120842751,6.68502005,1522.3,1521.9,0.4929]
[1674120842966,6.68502005,1522.3,1521.8,18.0376068]
[1674120843157,6.68502005,1522.3,1521.8,12.06655439]
[1674120843381,6.68502005,1522.3,1521.8,14.61263634]
[1674120843696,13.25414005,1522.3,1521.8,3.21410875]
[1674120843930,1.0,1522.2,1521.8,0.1091268]
[1674120844142,6.56993,1522.1,1521.8,0.1091268]
[1674120844298,6.63593,1522.1,1521.8,0.1091268]
[1674120846399,6.63593,1522.1,1521.8,0.19448599]
[1674120847612,6.63593,1522.1,1521.6,0.066]
[1674120847613,10.18374759,1521.9,1521.6,0.066]
[1674120847928,30.06928759,1521.8,1521.4,0.81010163]
[1674120848117,7.29867635,1521.7,1521.4,0.81010163]
[1674120848289,6.57202,1521.6,1521.4,0.81010163]
[1674120848496,6.63802,1521.6,1521.4,0.81010163]
[1674120849810,13.21004,1521.6,1521.4,0.81010163]
[1674120851228,3.29174759,1521.5,1521.4,0.81010163]
[1674120851442,6.94952635,1521.5,1521.4,0.81010163]
[1674120851706,20.16044635,1521.5,1521.4,0.81010163]
[1674120855221,20.81451107,1521.5,1521.4,0.81010163]
[1674120855431,30.93651107,1521.5,1521.4,0.81010163]
[1674120855641,34.89599205,1521.5,1521.4,0.81010163]
[1674120855960,30.96799205,1521.5,1521.4,0.81010163]
[1674120856694,30.31392733,1521.5,1521.4,0.81010163]
[1674120857831,23.19192733,1521.5,1521.4,0.81010163]
[1674120858474,23.16044635,1521.5,1521.4,0.81010163]
[1674120858838,0.3501074,1521.3,1521.0,1.76593891]
[1674120859059,0.3501074,1521.3,1520.9,0.066]
[1674120859060,17.29174759,1521.1,1520.6,0.39892533]
[1674120859360,3.29174759,1520.7,1520.2,1.1137315]
[1674120859620,3.29174759,1520.3,1520.2,1.1137315]
[1674120859832,30.14666759,1520.3,1520.2,1.1137315]
[1674120860051,30.21266759,1520.3,1520.2,1.1137315]
[1674120860361,4.444,1520.3,1520.2,1.0637315]
[1674120860669,5.48674759,1520.3,1520.2,1.0637315]
[1674120860889,21.70802759,1520.3,1520.2,1.0637315]
[1674120861099,8.27982226,1520.3,1520.2,1.0637315]
[1674120861248,2.48147467,1520.3,1520.2,1.0637315]
[1674120861461,1.92207467,1520.3,1520.2,1.0637315]
[1674120862143,0.80062725,1520.3,1520.2,2.4347315]
[1674120862357,0.80062725,1520.3,1520.2,2.82250465]
[1674120862672,0.80062725,1520.3,1520.2,4.31590465]
[1674120863680,6.6415,1520.8,1520.3,1.0]
[1674120863681,0.066,1520.8,1520.3,1.0]
[1674120863931,0.0706047,1520.9,1520.4,1.376]
[1674120864083,0.0046047,1520.9,1520.5,0.1376]
[1674120864297,6.5796647,1520.9,1520.5,0.1376]
[1674120864560,6.6456647,1520.9,1520.5,0.1376]
[1674120864761,6.6456647,1520.9,1520.4,0.4933]
[1674120864978,6.6456647,1520.9,1520.5,1.545]
[1674120865191,0.0706047,1520.9,1520.5,1.545]
[1674120865342,0.0046047,1520.9,1520.5,1.545]
[1674120865550,0.0066047,1520.9,1520.6,0.1545]
[1674120865781,0.0046047,1520.9,1520.6,0.1545]
[1674120866470,0.0046047,1520.9,1520.6,0.1045]
[1674120867313,18.48767229,1520.9,1520.4,0.5593]
[1674120867467,18.48767229,1520.9,1520.2,5.45150465]
[1674120867468,1.54,1520.8,1520.2,3.01090465]
[1674120867680,6.57606,1520.7,1520.2,2.94490465]
[1674120867936,6.64206,1520.7,1520.3,0.29449046]
[1674120868291,6.64206,1520.7,1520.4,1.0]
[1674120868292,0.066,1520.7,1520.4,1.0]
[1674120868414,7.1388647,1520.9,1520.5,0.1]
[1674120868970,6.6456647,1520.9,1520.5,0.1]
[1674120869314,0.0706047,1520.9,1520.5,0.1]
[1674120869625,0.0046047,1520.9,1520.5,0.1]
[1674120870198,0.0046047,1520.9,1520.8,1.554]
[1674120870452,0.0046047,1520.9,1520.8,1.7094]
[1674120870669,0.0046047,1520.9,1520.8,1.9974]
[1674120871244,0.0046047,1520.9,1520.8,3.5514]
[1674120871931,0.0046047,1520.9,1520.8,13.41862759]
[1674120872121,0.3501074,1521.3,1520.9,1.0]
[1674120872337,0.3501074,1521.3,1521.2,1.549]
[1674120872928,7.13071,1521.7,1521.2,4.84074759]
[1674120873139,7.13071,1521.7,1521.6,1.554]
[1674120873140,0.066,1521.7,1521.6,1.554]
[1674120873365,0.066,1522.0,1521.6,1.554]
[1674120873581,6.63599,1522.1,1521.6,1.554]
[1674120873830,7.12879,1522.1,1521.7,1.554]
[1674120874046,0.5588,1522.1,1521.7,1.554]
[1674120874359,0.066,1522.2,1521.7,4.84574759]
[1674120874587,7.13811933,1522.3,1521.8,2.03857476]
[1674120875403,0.56875933,1522.3,1521.8,2.03857476]
[1674120875554,0.50275933,1522.3,1521.8,5.33032235]
[1674120875889,0.01005933,1522.3,1521.9,0.53303224]
[1674120876083,0.01005933,1522.3,1521.9,2.08703224]
[1674120876548,0.01005933,1522.3,1521.8,0.55057476]
[1674120876872,0.01005933,1522.3,1521.6,5.2684]
[1674120876873,13.14812933,1522.3,1521.6,5.2684]
[1674120877025,13.21412933,1522.3,1521.6,5.56014759]
[1674120877233,1.03148098,1522.2,1521.6,5.56014759]
[1674120877481,7.60111098,1522.2,1521.7,0.55601476]
[1674120877671,6.66711098,1522.2,1521.7,0.55601476]
[1674120878079,0.09748098,1522.2,1521.7,0.55601476]
[1674120878293,0.03148098,1522.2,1521.7,0.55601476]
[1674120878939,0.03148098,1522.2,1521.7,3.84776235]
[1674120879168,0.03148098,1522.2,1521.8,0.38477624]
[1674120879384,0.03148098,1522.2,1521.8,1.93377624]
[1674120879707,6.64505933,1522.3,1521.8,1.93377624]
[1674120879922,0.07605933,1522.3,1521.9,1.547]
[1674120880076,0.01005933,1522.3,1521.9,1.547]
[1674120880445,0.01005933,1522.3,1521.9,2.07595238]
[1674120882220,0.01005933,1522.3,1521.9,6.36769997]
[1674120882431,0.01005933,1522.3,1521.9,13.00441997]
[1674120882613,0.01005933,1522.3,1522.0,3.29174759]
[1674120882964,0.01005933,1522.3,1522.0,11.41603759]
[1674120883178,0.01005933,1522.3,1522.1,1.14160376]
[1674120883965,0.01005933,1522.3,1522.0,4.91174759]
[1674120884169,0.01005933,1522.3,1522.0,3.29174759]
[1674120885316,0.01005933,1522.3,1522.0,5.84574759]
[1674120885466,0.01005933,1522.3,1522.0,19.05211759]
[1674120885677,0.01005933,1522.3,1522.1,4.84574759]
[1674120885893,0.01005933,1522.3,1522.2,0.48457476]
[1674120886093,0.01005933,1522.3,1522.2,5.32032235]
[1674120886307,0.01005933,1522.3,1522.2,20.56798235]
[1674120886659,0.01331799,1522.7,1522.3,1.0]
[1674120886866,0.01331799,1522.7,1522.5,1.55]
[1674120887203,0.01331799,1522.7,1522.5,2.69102076]
[1674120887630,0.01331799,1522.7,1522.5,1.14102076]
[1674120887931,0.01331799,1522.7,1522.5,4.43276835]
[1674120888776,0.01331799,1522.7,1522.5,11.00088835]
[1674120888991,0.01331799,1522.7,1522.5,11.06688835]
[1674120889913,0.01331799,1522.7,1522.5,0.066]
[1674120890105,0.03425162,1522.4,1522.2,0.5588]
[1674120890456,0.03425162,1522.4,1522.2,3.29174759]
[1674120891093,0.03425162,1522.4,1522.1,1.62]
[1674120891245,0.03425162,1522.4,1522.2,0.162]
[1674120895137,0.03425162,1522.4,1522.2,6.73142]
[1674120895350,0.03425162,1522.4,1522.2,10.08916759]
[1674120896665,0.03425162,1522.4,1522.3,3.29174759]
[1674120896981,0.03425162,1522.4,1522.3,16.42974759]
[1674120897219,0.03425162,1522.4,1522.3,18.97386435]
[1674120897557,0.03425162,1522.4,1522.3,20.75786435]
[1674120897879,0.03425162,1522.4,1522.3,21.41192907]
[1674120898774,0.03425162,1522.4,1522.3,20.75786435]
[1674120900223,0.03425162,1522.4,1522.3,12.40486435]
[1674120900624,0.94025162,1522.4,1522.3,0.066]
[1674120900840,0.94025162,1522.4,1522.1,16.69793]
[1674120901148,0.03425162,1522.4,1522.1,19.98967759]
[1674120901397,0.03425162,1522.4,1522.2,1.99896776]
[1674120901608,0.03425162,1522.4,1522.2,8.56837776]
[1674120901765,0.03425162,1522.4,1522.2,8.63437776]
[1674120908126,0.03425162,1522.4,1522.2,6.63541]
[1674120909560,0.03425162,1522.4,1522.2,0.066]
[1674120909851,0.03425162,1522.4,1522.1,19.43087759]
[1674120909852,0.03425162,1522.4,1522.1,16.49687759]
[1674120911511,0.03425162,1522.4,1522.1,16.49440022]
[1674120915254,0.03425162,1522.4,1522.1,0.066]
[1674120915255,0.85803277,1522.4,1522.1,0.066]
[1674120915464,14.02340211,1522.4,1521.9,9.63636]
[1674120915753,14.08940211,1522.4,1522.0,3.29174759]
[1674120917051,14.08940211,1522.4,1522.0,5.24160935]
[1674120917247,14.08940211,1522.4,1522.0,5.30760935]
[1674120918881,15.11030055,1522.4,1522.0,5.30760935]
[1674120919047,15.11030055,1522.4,1522.0,3.35774759]
[1674120919265,0.82390327,1522.3,1521.9,6.63636]
[1674120919474,7.39293327,1522.3,1521.9,9.92810759]
[1674120919664,7.31543484,1522.3,1521.9,11.62732135]
[1674120920670,8.33633328,1522.3,1521.9,11.62732135]
[1674120921503,0.82397502,1522.2,1521.9,11.62732135]
[1674120921671,0.68040484,1522.2,1521.9,11.62732135]
[1674120922362,8.33633328,1522.3,1522.0,1.16273214]
[1674120923448,0.74640484,1522.3,1522.0,1.16273214]
[1674120923699,1.84488172,1522.3,1522.0,1.16273214]
[1674120923870,1.70130328,1522.3,1522.1,0.11627321]
[1674120924079,2.30376398,1522.4,1522.1,0.11627321]
[1674120924291,1.7355549,1522.4,1522.1,6.68612321]
[1674120924549,1.7355549,1522.4,1522.2,3.96035991]
[1674120924550,0.03425162,1522.4,1522.2,3.96035991]
[1674120924731,0.03425162,1522.4,1522.3,16.42974759]
[1674120924947,0.03425162,1522.4,1522.3,16.72574759]
[1674120925151,0.03425162,1522.4,1522.3,19.18752905]
[1674120925612,0.03425162,1522.4,1522.3,20.55952905]
[1674120932416,0.03425162,1522.4,1522.3,13.99052905]
[1674120932626,0.03425162,1522.4,1522.3,12.61852905]
[1674120933492,0.54106086,1522.4,1522.3,12.61852905]
[1674120936021,0.54106086,1522.4,1522.3,12.61575571]
[1674120936206,0.54106086,1522.4,1522.3,19.18475571]
[1674120938729,0.54106086,1522.4,1522.3,5.81952905]
[1674120938932,0.54106086,1522.4,1522.3,3.35774759]
[1674120939166,0.54106086,1522.4,1522.3,3.29174759]
[1674120941588,0.54106086,1522.4,1522.2,6.63521]
[1674120941753,0.54106086,1522.4,1522.2,0.066]
[1674120941959,0.54106086,1522.4,1522.0,19.77608]
[1674120942172,0.54106086,1522.4,1522.1,3.29174759]
[1674120942436,0.54106086,1522.4,1522.1,9.86148759]
[1674120942658,0.54106086,1522.4,1522.1,9.92748759]
[1674120948178,0.54106086,1522.4,1522.1,0.066]
[1674120948411,14.48163926,1522.4,1522.0,0.066]
[1674120948629,1.0,1522.2,1521.9,9.63667]
[1674120948830,1.0,1522.2,1521.9,12.92841759]
[1674120949007,13.88473484,1522.3,1521.9,3.35774759]
[1674120949217,1.73155048,1522.2,1521.9,3.29174759]
[1674120949462,0.73155048,1522.2,1521.9,3.29174759]
[1674120950478,13.88473484,1522.3,1521.9,3.29174759]
[1674120951418,7.31550484,1522.3,1521.9,3.29174759]
[1674120951633,7.31550484,1522.3,1521.9,3.29514947]
[1674120951898,7.31550484,1522.3,1521.9,9.86582947]
[1674120952081,7.31550484,1522.3,1521.9,9.93182947]
[1674120952295,9.12981732,1522.3,1521.9,9.93182947]
[1674120955661,8.44941248,1522.3,1521.9,9.93182947]
[1674120955881,0.066,1522.3,1522.0,3.29174759]
[1674120956113,0.50680924,1522.4,1522.1,23.23135759]
[1674120956300,0.50680924,1522.4,1522.2,5.61488335]
[1674120956493,0.50680924,1522.4,1522.3,3.29174759]
[1674120957928,0.50680924,1522.4,1522.3,9.86074759]
[1674120958065,0.50680924,1522.4,1522.3,9.92674759]
[1674120958390,0.50680924,1522.4,1522.3,12.46558393]
[1674120959238,0.50680924,1522.4,1522.3,12.46358393]
[1674120959434,0.50680924,1522.4,1522.3,12.46558393]